[Event "Nakhchivan Open 2022"]
[Site "Nakhchivan"]
[Date "2022.05.14"]
[Round "9.6"]
[White "Mohammadi, Melika"]
[Black "Hasanzade, Toghrul"]
[Result "0-1"]
[ECO "B11"]
[WhiteElo "1885"]
[BlackElo "2279"]
[Annotator "TA"]
[PlyCount "130"]
[EventDate "2022.05.08"]
[EventType "swiss"]
[EventCountry "AZE"]
[SourceTitle "playchess.com"]
[Source "ChessBase"]
[SourceQuality "1"]
[TimeControl "5400+30"]

{[%evp 11,130,36,36,34,34,42,41,45,49,49,44,56,48,51,54,47,60,47,56,64,53,47,146,154,116,0,0,0,0,-14,-22,-60,-54,-102,0,-182,-66,-164,-150,-380,-364,-291,-235,-213,-133,-537,-521,-501,0,0,0,0,306,0,0,0,0,0,121,103,117,97,101,74,815,658,824,744,817,803,777,764,725,709,627,334,617,542,582,180,545,501,447,347,225,0,0,0,0,0,20,0,0,-23,-23,-64,-23,-30,-8,-16,0,-10,-13,-36,-36,-71,-15,-41,-41,-46,-15,-154,0,-8,0,-213,-204,-302,-273,-29976,-29976]} 1. e4 {[%emt 0:00:03]} c6 {[%emt 0:03:41]} 2. Nc3 {[%emt 0:00:10]} d5 {[%emt 0:00:08]} 3. Nf3 {[%emt 0:00:06]} Bg4 {[%emt 0:00:14][%cal Bc8g4,Bg4h5,Bh5g6][%mdl 32]} 4. h3 {[%emt 0:00:13][%cal Bh2h3,Bh3h4,Bh4h5,Bh5g6][%mdl 32]} Bh5 {[%emt 0:00:06]} 5. exd5 {[%emt 0:00:19]} cxd5 {[%emt 0:00:05]} 6. g4 {[%emt 0:00:18]} Bg6 {[%emt 0:00:05]} 7. Ne5 {[%emt 0:00:28] B11: Caro-Kann: Two Knights Variation.} Nc6 {[%emt 0:00:09]} 8. d4 {[%emt 0:00:27] The main line 8.d4 scores better than 8.Bb5.} e6 {[%emt 0:00:19]} 9. h4 {[%emt 0:00:14] White is slightly better.} f6 {[%emt 0:03:56]} 10. h5 {[%emt 0:00:22]} (10. Nxg6 hxg6 11. Be3 Bd6 $11) 10... fxe5 {[%emt 0:08:50]} 11. hxg6 {[%emt 0:00:11]} h6 {[%emt 0:00:03]} 12. dxe5 {[%emt 0:12:55]} (12. Qf3 Qf6 13. Qxf6 Nxf6 14. dxe5 Nxg4 $11) 12... Bb4 {[%emt 0:08:34]} 13. Bd2 $1 {[%emt 0:09:05] [#]} Nge7 $146 {[%emt 0:14:50]} ({Predecessor:} 13... Nxe5 14. f4 Nxg6 15. Bb5+ Kf8 16. Qf3 Nf6 17. O-O-O Qa5 18. Bd3 Ne7 19. g5 Nd7 20. gxh6 gxh6 {1-0 (57) Spitzl,V (2346)-Kukhmazov,A (2442) Chess.com INT 2021}) 14. g5 $1 {[%emt 0:08:47][%cal Rg5h6]} Bxc3 {[%emt 0:08:01]} 15. bxc3 {[%emt 0:14:48][%cal Rg5h6]} Qc7 {[%emt 0:03:31]} 16. gxh6 {[%emt 0:07:14]} O-O-O {[%emt 0:01:08]} (16... gxh6 $14 17. Qg4 Qxe5+ 18. Kd1 Kd7) 17. f4 $16 {[%emt 0:11:24]} (17. h7 $6 Nxg6 18. f4 Nf8 $14) 17... gxh6 {[%emt 0:14:31]} 18. Qg4 {[%emt 0:02:13]} (18. Bd3 $1 $16) 18... Nf5 $11 {[%emt 0:03:35]} 19. Bd3 {[%emt 0:05:57]} Nce7 {[%emt 0:00:07]} 20. Qg1 {[%emt 0:00:25]} Kb8 {[%emt 0:01:31][%mdl 1024] Black has compensation.} 21. Rh2 {[%emt 0:07:11]} Rhg8 {[%emt 0:03:01]} 22. Rg2 {[%emt 0:00:15]} (22. Qf2 $15 {might be stronger.}) 22... Rg7 {[%emt 0:01:20]} (22... Nh4 $1 $17 {[%cal Rh4f3]} 23. Rg3 Nef5) 23. Rb1 $2 {[%emt 0:12:02]} (23. O-O-O $11) 23... Rdg8 {[%emt 0:02:25]} (23... Nh4 $1 $19 {[%cal Rh4f3] And now ...Nf3+ would win.} 24. Rg3 Nef5) 24. Ba6 {[%emt 0:00:39]} ({Better is} 24. Qf2 $15) 24... b6 {[%emt 0:00:11]} 25. a4 $2 {[%emt 0:00:37]} (25. Qf2 $17 {keeps fighting.}) 25... Rxg6 $19 {[%emt 0:00:49]} 26. Rxg6 {[%emt 0:00:19]} Rxg6 {[%emt 0:00:03]} 27. Qf2 {[%emt 0:00:25]} Nc6 {[%emt 0:05:17]} 28. c4 $2 {[%emt 0:01:17][%mdl 8192]} (28. Kd1 $17 {is more resistant.}) 28... Ncd4 {[%emt 0:03:02] Threatens to win with ...Qg7. Pair of Knights!} 29. Bc3 {[%emt 0:04:55]} Qg7 $2 {[%emt 0:06:12]} 30. Bxd4 $11 {[%emt 0:01:12]} Nxd4 {[%emt 0:00:01]} 31. cxd5 {[%emt 0:00:34]} Nf5 {[%emt 0:02:59][%mdl 8192]} (31... Rg2 $11 {and Black is okay.} 32. Qxd4 Qg3+ 33. Kf1 Qf3+ 34. Ke1 Qg3+ 35. Kf1 Qf3+ 36. Ke1 Qg3+) 32. d6 $2 {[%emt 0:00:46]} (32. dxe6 $18 Rg1+ 33. Bf1) 32... Rg2 $1 {[%emt 0:01:22]} (32... Rg1+ $2 33. Bf1 $18) 33. d7 {[%emt 0:00:25][%cal Rd7d8]} Kc7 {[%emt 0:01:30] Dancing on a razor blade.} 34. Qf3 $40 {[%emt 0:00:22][%mdl 128] Black needs to defend precisely.} Rg1+ {[%emt 0:01:22]} (34... Qg3+ $1 $11 {keeps the balance.} 35. Qxg3 Rxg3) 35. Kf2 $16 {[%emt 0:00:13] White wants to mate with Qb7+.} Qg3+ {[%emt 0:02:46]} 36. Qxg3 {[%emt 0:00:02]} Rxg3 {[%emt 0:00:00][%mdl 4096] Endgame KRB-KRN} 37. Rd1 {[%emt 0:00:27]} Rg8 {[%emt 0:00:56][%mdl 8192]} (37... Kd8 $16) 38. Bc4 $18 {[%emt 0:00:17]} Ng7 {[%emt 0:00:40]} 39. f5 {[%emt 0:00:17]} Nxf5 {[%emt 0:01:44]} 40. Bxe6 {[%emt 0:00:05]} Rg2+ {[%emt 0:00:18]} 41. Kf3 {[%emt 0:00:22]} (41. Kxg2 Ne3+ 42. Kf3 Nxd1 $18) 41... Nh4+ {[%emt 0:00:07]} 42. Ke3 {[%emt 0:00:07]} Kd8 {[%emt 0:01:00]} 43. Rd4 {[%emt 0:01:01] White threatens Rc4 and mate.} Rg6 $2 {[%emt 0:00:24]} (43... Rg3+ 44. Ke4 Rc3) 44. Rd6 {[%emt 0:02:21]} (44. Rxh4 Rxe6 45. Kd4 Kxd7 $14) 44... Rg3+ {[%emt 0:00:52]} 45. Kf2 $2 {[%emt 0:00:38]} (45. Ke4 {Rc6 is the strong threat.} Rc3 46. a5 bxa5 47. Ra6) 45... Rc3 {[%emt 0:00:15] Inhibits Rc6.} (45... Rf3+ 46. Ke1 Ng2+ 47. Kd2 Rf2+ 48. Kc3 Rf3+ 49. Kc4 Rf2) 46. Bg4 {[%emt 0:00:29]} h5 {[%emt 0:00:47]} 47. Bxh5 {[%emt 0:00:31]} Rxc2+ {[%emt 0:00:08][%cal Bc3c2,Bc2g2,Bg2g5,Bg5e5,Be5d5,Bd5d2][%mdl 32] [#]} 48. Ke1 $2 {[%emt 0:00:28]} (48. Be2 $1 $18) 48... Ng2+ $11 {[%emt 0:00:19]} 49. Kf1 {[%emt 0:00:10]} Ne3+ {[%emt 0:00:00]} 50. Kg1 {[%emt 0:00:26]} Rg2+ {[%emt 0:00:08]} 51. Kh1 {[%emt 0:00:25] Hoping for e6.} Rg5 {[%emt 0:00:01][%csl LRe5,LRh5]} 52. Be8 {[%emt 0:01:00] aiming for Rc6.} Rxe5 {[%emt 0:00:21]} 53. Rg6 {[%emt 0:00:29]} Rd5 {[%emt 0:00:15]} 54. Rg8 {[%emt 0:00:30]} Rd2 {[%emt 0:00:09]} 55. Kg1 {[%emt 0:00:32]} Kc7 {[%emt 0:00:35]} 56. Rg3 {[%emt 0:00:30]} Nd5 {[%emt 0:01:13]} 57. Rf3 {[%emt 0:00:18] Prevents Nf6.} Kd8 {[%emt 0:00:59]} 58. Kf1 {[%emt 0:00:40][%cal Oa4a5]} a5 {[%emt 0:00:26]} (58... Rd4 $17 59. Rf8 Nc7 60. Bf7+ Kxd7) 59. Ke1 {[%emt 0:00:31]} Rd4 {[%emt 0:00:03]} 60. Rf5 {[%emt 0:00:32]} Nc3 {[%emt 0:00:48]} 61. Rf6 {[%emt 0:00:27]} (61. Rh5 $11 {remains equal.}) 61... Nxa4 $2 {[%emt 0:02:03]} ({Black should play} 61... Rd1+ $17 62. Kf2 Ne4+ 63. Ke2 Nxf6 64. Kxd1 Ne4) 62. Rc6 {[%emt 0:00:07]} Ke7 {[%emt 0:00:38]} 63. Rc8 $2 {[%emt 0:00:52]} (63. Kf2 $11 {and White has nothing to worry.}) 63... Nc5 $19 {[%emt 0:00:12]} 64. Rb8 {[%emt 0:00:19] [#]} (64. Rc6 {might work better.}) 64... Rd6 $1 {[%emt 0:00:24]} ({Stronger than} 64... Nxd7 65. Bxd7 Kxd7 66. Rxb6 $15) 65. Rb7 $2 {[%emt 0:00:34]} (65. Ra8 $19) 65... Nxb7 {[%emt 0:00:01] A wild game.  Weighted Error Value: White=0.74/Black=0.50} 0-1